bitfinex/quotes_BTCUSD_20260125
["timestamp","ask_amount","ask_price","bid_price","bid_amount"]
[1769357663442,0.00749874,87990.0,87961.0,0.49137239]
[1769357663762,0.00749874,87990.0,87962.0,1.16404357]
[1769357663941,0.0005567,87994.0,87967.0,0.48000372]
[1769357664139,0.37049464,87990.0,87963.0,1.16404357]
[1769357664359,0.37049464,87990.0,87955.0,0.48000372]
[1769357664360,0.47933607,87984.0,87955.0,0.48000372]
[1769357664562,0.48683721,87983.0,87957.0,0.08232566]
[1769357664769,0.47933607,87981.0,87956.0,0.00014227]
[1769357664974,0.47933607,87978.0,87950.0,0.17476]
[1769357665198,0.001,87968.0,87950.0,0.17476]
[1769357665609,0.47933607,87976.0,87950.0,0.17476]
[1769357665810,0.00014219,87978.0,87950.0,0.17476]
[1769357665811,0.00750114,87975.0,87950.0,0.17476]
[1769357666046,0.48683721,87975.0,87951.0,0.11160278]
[1769357666595,0.00014219,87978.0,87950.0,0.17476]
[1769357666596,0.00750114,87974.0,87950.0,0.17476]
[1769357666858,0.47933607,87973.0,87950.0,0.17576]
[1769357667338,0.00014219,87978.0,87951.0,0.48000372]
[1769357667535,0.00014219,87978.0,87950.0,0.17576]
[1769357667536,0.00014219,87978.0,87957.0,0.48000372]
[1769357667696,0.00014219,87978.0,87959.0,0.01136893]
[1769357668042,0.0005567,87994.0,87965.0,0.01136815]
[1769357668275,0.0005567,87994.0,87967.0,1.16404357]
[1769357668408,0.0005567,87994.0,87966.0,0.53596197]
[1769357668409,0.0005567,87994.0,87975.0,1.16404357]
[1769357668611,0.0005567,87994.0,87977.0,1.64404729]
[1769357668810,0.0005567,87994.0,87970.0,0.54525464]
[1769357668811,0.0596173,88016.0,87982.0,0.01136596]
[1769357669034,0.04552,88016.0,87986.0,1.16404357]
[1769357669232,0.04552,88016.0,87988.0,1.16404357]
[1769357669416,0.01191685,88027.0,87994.0,1.64404729]
[1769357669417,0.0005567,88027.0,87994.0,1.64404729]
[1769357669618,0.0005567,88027.0,87995.0,1.16404357]
[1769357669942,0.0005567,88027.0,87996.0,0.48000372]
[1769357670377,0.01464843,88026.0,87996.0,0.48000372]
[1769357670577,0.49445882,88026.0,87996.0,0.5916065]
[1769357670781,0.01136053,88024.0,87987.0,0.11160278]
[1769357671108,0.47933607,88018.0,87988.0,0.22024]
[1769357671498,0.47933607,88018.0,87988.0,1.38428357]
[1769357671644,1.2858,88025.0,87990.0,1.16404357]
[1769357671880,0.50581909,88026.0,87991.0,1.16404357]
[1769357672092,0.4939845,88024.0,87991.0,1.16404357]
[1769357672301,0.4939845,88024.0,87977.0,0.17472]
[1769357672302,0.37049464,88010.0,87977.0,0.17472]
[1769357672506,0.47933607,88015.0,87980.0,0.01136621]
[1769357672753,0.47933607,88015.0,87979.0,0.48000372]
[1769357672951,0.47753117,88012.0,87979.0,0.48000372]
[1769357673155,0.4921796,88011.0,87979.0,0.5916065]
[1769357673381,0.37049464,88000.0,87961.0,0.47556264]
[1769357673571,0.01464843,87999.0,87971.0,0.22024]
[1769357674072,0.47767766,88002.0,87971.0,0.22024]
[1769357674390,0.47767766,88002.0,87972.0,1.15923363]
[1769357674550,0.47767766,88002.0,87973.0,0.11160278]
[1769357674745,0.46767766,88002.0,87973.0,0.11160278]
[1769357675317,0.46867766,88002.0,87973.0,0.11160278]
[1769357675733,0.47767766,88001.0,87973.0,0.11160278]
[1769357675982,0.47781987,88001.0,87973.0,0.11160278]
[1769357677634,0.47781987,88001.0,87973.0,1.27083641]
[1769357677791,0.47781987,88001.0,87973.0,1.27183641]
[1769357677973,0.47781987,88001.0,87973.0,0.58816542]
[1769357678177,0.47767338,88001.0,87974.0,1.15923363]
[1769357678995,0.00014649,87999.0,87974.0,1.15923363]
[1769357679229,0.00014649,87999.0,87975.0,0.11160278]
[1769357680275,0.47753117,88000.0,87975.0,0.11160278]
[1769357680469,0.47753117,88000.0,87976.0,1.15923363]
[1769357682077,0.47753117,88000.0,87976.0,1.63479627]
[1769357682464,0.00014221,88001.0,87975.0,0.11160278]
[1769357682812,0.00014221,88001.0,87979.0,1.63479627]
[1769357683096,0.00014221,88001.0,87982.0,1.15923363]
[1769357683291,0.00014221,88001.0,87976.0,0.07024415]
[1769357683495,0.00014221,88001.0,87971.0,0.22024]
[1769357683496,0.01136415,87996.0,87971.0,0.22024]
[1769357683637,0.00014221,88001.0,87957.0,0.17468]
[1769357683638,0.47753117,87987.0,87957.0,0.17468]
[1769357683847,0.01136441,87994.0,87957.0,0.17468]
[1769357683848,0.00660592,87986.0,87959.0,1.15923363]
[1769357684083,0.47753117,87985.0,87959.0,1.15923363]
[1769357684445,0.47753117,87985.0,87961.0,0.47556264]
[1769357684615,0.47753117,87985.0,87963.0,1.15923363]
[1769357684812,0.47753117,87985.0,87963.0,1.24471838]
[1769357685046,0.00660592,87993.0,87963.0,1.24471838]
[1769357685233,0.00660592,87993.0,87965.0,1.15923363]
[1769357685486,0.00660592,87992.0,87966.0,0.47556264]
[1769357685635,0.47753117,87991.0,87967.0,1.15923363]
[1769357685863,0.48413709,87991.0,87968.0,0.11160278]
[1769357686440,0.48353709,87991.0,87968.0,0.11160278]
[1769357687056,0.47693117,87991.0,87968.0,0.11160278]
[1769357687274,0.47753117,87989.0,87968.0,0.11160278]
[1769357687396,0.00660592,87988.0,87968.0,0.11160278]
[1769357687614,0.47753117,87988.0,87969.0,0.10065714]
[1769357687830,0.01136428,87995.0,87963.0,0.08548475]
[1769357687831,0.48413709,87986.0,87963.0,0.08548475]
[1769357688242,0.47753117,87986.0,87963.0,1.24471838]
[1769357688446,0.47753117,87986.0,87963.0,1.72028102]
[1769357688764,0.47753117,87986.0,87964.0,1.15923363]
[1769357689059,0.47753117,87986.0,87966.0,1.15923363]
[1769357689835,0.01150571,88001.0,87963.0,0.001]
[1769357689836,0.47753117,87984.0,87963.0,0.001]
[1769357690037,0.00660592,87981.0,87963.0,0.001]
[1769357690243,0.48413709,87981.0,87963.0,0.001]
[1769357690756,0.48413709,87981.0,87963.0,0.08286084]
[1769357691122,0.48413709,87981.0,87963.0,0.08186084]
[1769357691347,0.47753117,87981.0,87963.0,1.24109447]
[1769357691646,0.47753117,87981.0,87963.0,0.08186084]
[1769357692654,0.48413709,87981.0,87963.0,0.08186084]
[1769357692851,0.48413709,87981.0,87959.0,0.47556264]
[1769357692852,0.47753117,87979.0,87952.0,0.17472]
[1769357693030,0.00660592,87976.0,87952.0,0.17472]
[1769357693232,0.47753117,87985.0,87952.0,0.28632278]
[1769357693436,0.11136037,87984.0,87953.0,1.63479627]
[1769357693653,0.11136037,87984.0,87954.0,0.47556264]
[1769357693837,0.11136037,87984.0,87952.0,0.28632278]
[1769357693838,0.47753117,87983.0,87952.0,0.17472]
[1769357694042,0.00660592,87984.0,87952.0,0.17472]
[1769357694205,0.47753117,87981.0,87953.0,1.15923363]
[1769357694409,0.47753117,87979.0,87954.0,1.15923363]
[1769357694614,0.47753117,87975.0,87955.0,0.47556264]
[1769357694839,0.37059867,87990.0,87955.0,0.47556264]
[1769357694840,0.48413709,87974.0,87955.0,0.47556264]
[1769357695241,0.47753117,87974.0,87956.0,1.15923363]
[1769357695439,0.47753117,87974.0,87957.0,0.11160278]
[1769357695665,0.47753117,87974.0,87956.0,1.15923363]
[1769357696049,0.47753117,87974.0,87956.0,1.15937582]
[1769357697055,0.47753117,87973.0,87956.0,0.00014219]
[1769357697376,0.00660592,87970.0,87945.0,0.17472]
[1769357697578,0.00660592,87970.0,87912.0,0.06270569]
[1769357697579,0.37059867,87960.0,87936.0,0.47556264]
[1769357697784,0.00679642,87956.0,87936.0,0.47556264]
[1769357698212,0.48432759,87956.0,87936.0,0.47556264]
[1769357698418,0.0113697,87953.0,87926.0,0.47556264]
[1769357698620,0.0113697,87953.0,87924.0,0.17472]
[1769357698621,0.00679642,87949.0,87924.0,0.17472]
[1769357698843,0.0113697,87953.0,87924.0,0.17472]
[1769357698844,0.47753117,87946.0,87924.0,0.17472]
[1769357699044,0.00679642,87943.0,87924.0,0.17472]
[1769357699248,0.47753117,87943.0,87924.0,0.17472]
[1769357699425,0.47753117,87943.0,87924.0,0.1749783]
[1769357700084,0.47753117,87943.0,87925.0,1.15923363]
[1769357700360,0.00679642,87953.0,87926.0,0.11160278]
[1769357700550,0.00679642,87951.0,87926.0,0.47556264]
[1769357700758,0.47753117,87945.0,87925.0,0.00073147]
[1769357700957,0.47753117,87941.0,87925.0,0.00073147]
[1769357701157,0.47753117,87940.0,87925.0,0.00073147]
[1769357701903,0.47753117,87935.0,87920.0,0.04552]
[1769357702142,0.00679642,87932.0,87920.0,0.04552]
[1769357702329,0.48432759,87932.0,87920.0,0.04552]
[1769357702714,0.48432759,87932.0,87898.0,0.47556264]
[1769357702715,0.00704345,87919.0,87898.0,0.47556264]
[1769357703019,0.47753117,87921.0,87899.0,1.12578586]
[1769357703217,0.47753117,87921.0,87899.0,1.1478295]
[1769357703396,0.00704345,87920.0,87899.0,1.1478295]
[1769357703604,0.00704345,87920.0,87899.0,0.02204364]
[1769357703802,0.47753117,87921.0,87899.0,1.12578586]
[1769357704598,0.00704345,87920.0,87898.0,0.47556264]
[1769357704803,0.00704345,87920.0,87899.0,1.12578586]
[1769357704804,0.47777932,87920.0,87899.0,1.12578586]
[1769357705014,0.001,87921.0,87887.0,0.05689824]
[1769357705242,0.47073587,87919.0,87889.0,0.17476]
[1769357705472,0.47073587,87919.0,87888.0,0.101]
[1769357705473,3.58,87915.0,87888.0,0.101]
[1769357705671,0.47073587,87910.0,87888.0,0.101]
[1769357705924,0.88922287,87926.0,87889.0,1.11917682]
[1769357706139,0.88922287,87926.0,87901.0,1.12578586]
[1769357706140,0.47073587,87925.0,87901.0,1.12578586]
[1769357706355,0.47073587,87936.0,87904.0,1.12578586]
[1769357706564,0.47073587,87936.0,87900.0,0.37059867]
[1769357706565,0.04552,87939.0,87913.0,0.45801808]
[1769357706773,0.04552,87939.0,87916.0,1.12578586]
[1769357706983,0.04552,87939.0,87919.0,0.45801808]
[1769357707195,0.04552,87939.0,87920.0,1.12578586]
[1769357707405,0.04552,87939.0,87920.0,1.20419485]
[1769357707613,0.47073587,87946.0,87920.0,1.20419485]
[1769357707614,0.47073587,87946.0,87921.0,1.12578586]
[1769357707851,0.47073587,87946.0,87920.0,0.53642707]
[1769357707852,0.25369618,87946.0,87922.0,1.12578586]
[1769357708060,0.020736,87958.0,87927.0,0.45801808]
[1769357708270,0.020736,87958.0,87922.0,0.00047382]
[1769357708271,0.52394282,87959.0,87930.0,1.12578586]
[1769357708504,0.06387741,87960.0,87932.0,0.4693905]
[1769357708703,0.01190033,87976.0,87935.0,1.12578586]
[1769357708704,0.46308994,87969.0,87935.0,1.12578586]
[1769357708909,0.020736,87968.0,87939.0,1.12578586]
[1769357709152,0.001,87946.0,87940.0,0.45801808]
[1769357709367,0.45628563,87967.0,87942.0,1.12578586]
[1769357709857,0.45628563,87967.0,87940.0,0.45820048]
[1769357710085,0.45628563,87959.0,87940.0,0.0001824]
[1769357710295,0.46386373,87958.0,87940.0,0.0001824]
[1769357710708,0.0075781,87955.0,87940.0,0.0001824]
[1769357711009,2.7853,87969.0,87940.0,0.0001824]
[1769357711215,0.45569163,87981.0,87947.0,0.46938856]
[1769357711490,0.001,87967.0,87951.0,1.12578586]
[1769357711819,0.01136686,87975.0,87952.0,1.58380394]
[1769357711968,0.01136686,87975.0,87947.0,0.0001824]
[1769357711969,0.00999999,87952.0,87947.0,0.0001824]
[1769357712593,0.37059867,87980.0,87947.0,0.0001824]
[1769357712772,0.00067573,87976.0,87950.0,1.12578586]
[1769357712973,0.01204246,87976.0,87950.0,1.12578586]
[1769357713160,0.00067573,87976.0,87950.0,1.12578586]
[1769357713356,0.0075781,87968.0,87950.0,0.0001824]
[1769357713603,0.0075781,87967.0,87950.0,0.0001824]
[1769357713841,0.0075781,87968.0,87950.0,0.0001824]
[1769357713991,0.45569163,87968.0,87950.0,0.0001824]
[1769357714611,0.00167573,87976.0,87950.0,0.0001824]
[1769357714957,0.00067573,87976.0,87956.0,0.45536671]
[1769357715071,0.00067573,87976.0,87957.0,0.45536671]
[1769357715276,0.00067573,87976.0,87958.0,1.09224339]
[1769357715533,0.00067573,87976.0,87958.0,1.5477925]
[1769357715737,0.00067573,87976.0,87958.0,1.65939528]
[1769357715962,0.00067573,87976.0,87958.0,0.56715189]
[1769357716081,0.00067573,87976.0,87958.0,0.45554911]
[1769357716694,0.04552,87990.0,87958.0,0.0001824]
[1769357716944,0.04552,87990.0,87963.0,0.45536671]
[1769357717146,0.04552,87990.0,87966.0,1.09224339]
[1769357717389,0.04552,87990.0,87967.0,0.02585569]
[1769357717592,0.04552,87990.0,87967.0,0.02525569]
[1769357718232,0.45569163,87997.0,87967.0,0.02525569]
[1769357718484,0.001,87990.0,87968.0,1.09224339]
[1769357718793,0.001,87990.0,87967.0,0.0001824]
[1769357718794,0.46251038,87987.0,87967.0,0.0001824]
[1769357719145,0.01818432,87985.0,87967.0,0.0001824]
[1769357719346,0.00681875,87985.0,87967.0,0.0001824]
[1769357719690,0.45569163,87987.0,87967.0,0.0001824]
[1769357720029,0.38296359,87990.0,87967.0,0.0001824]
[1769357720232,0.001,87990.0,87967.0,0.0001824]
[1769357720460,0.45569163,87995.0,87967.0,0.0001824]
[1769357720461,0.232,87991.0,87967.0,0.0001824]
[1769357720791,0.020736,88000.0,87972.0,1.09224339]
[1769357720989,0.46229968,87998.0,87973.0,0.45536671]
[1769357721249,3.58,87999.0,87958.0,0.00014213]
[1769357721463,0.01136828,87964.0,87958.0,0.00014213]
[1769357721693,0.37059867,87960.0,87935.0,1.09224339]
[1769357721912,0.00014211,87960.0,87935.0,1.09224339]
[1769357722125,0.00014211,87960.0,87935.0,1.5476101]
[1769357722331,0.00014211,87960.0,87937.0,0.45536671]
[1769357722500,0.00014211,87960.0,87941.0,0.45536671]
[1769357722710,0.04552,87976.0,87944.0,1.09224339]
[1769357722916,0.01136492,87990.0,87950.0,0.37059867]
[1769357723155,0.0113657,87984.0,87954.0,0.45536671]
[1769357723360,0.45569163,87993.0,87945.0,0.04552]
[1769357723361,0.01136686,87975.0,87945.0,1.5476101]
[1769357723562,0.00752746,87972.0,87945.0,1.5476101]
[1769357723913,0.001,87960.0,87945.0,0.45536671]
[1769357724118,0.001,87960.0,87948.0,1.09224339]
[1769357724312,0.69026647,87978.0,87951.0,1.09224339]
[1769357724517,0.01136634,87979.0,87945.0,1.09224339]
[1769357724765,0.01136634,87979.0,87949.0,1.09224339]
[1769357724969,1.9428,87983.0,87952.0,0.45536671]
[1769357725167,0.50121163,87986.0,87944.0,0.00014211]
[1769357725168,0.0568382,87969.0,87944.0,0.00014211]
[1769357725310,0.01243342,87965.0,87944.0,0.00014211]
[1769357725516,0.00106527,87965.0,87944.0,0.00014211]
[1769357725872,0.45569163,87968.0,87945.0,0.05101434]
[1769357726182,0.01136686,87975.0,87949.0,1.09224339]
[1769357726390,0.01136673,87976.0,87951.0,1.5476101]
[1769357726542,0.0113666,87977.0,87951.0,1.5476101]
[1769357726926,0.01136686,87975.0,87951.0,1.5476101]
[1769357727226,0.020736,87979.0,87954.0,0.45536671]
[1769357727561,0.020736,87979.0,87958.0,0.45536671]
[1769357727736,0.001,87977.0,87958.0,0.45536671]
[1769357728964,0.020736,87979.0,87958.0,0.45536671]
[1769357728965,0.01136647,87978.0,87958.0,0.45536671]
[1769357729322,0.17476,87982.0,87958.0,0.45536671]
[1769357729323,0.01136544,87986.0,87959.0,1.09224339]
[1769357729502,0.001,87979.0,87963.0,1.09224339]
[1769357729658,0.001,87979.0,87964.0,0.45536671]
[1769357729845,0.01136531,87987.0,87965.0,0.45536671]
[1769357730053,0.01136544,87986.0,87965.0,0.45536671]
[1769357730248,0.001,87977.0,87965.0,0.45536671]
[1769357730677,0.01136505,87989.0,87966.0,1.5476101]
[1769357730881,0.020736,87991.0,87958.0,0.11160278]
[1769357731087,0.05688402,87997.0,87955.0,0.04552]
[1769357731088,0.45569163,87999.0,87962.0,0.45536671]
[1769357731329,0.45569163,87999.0,87960.0,0.38196747]
[1769357731330,0.13184305,87998.0,87965.0,1.09224339]
[1769357731537,0.020736,87998.0,87968.0,0.45536671]
[1769357731744,0.020736,87998.0,87971.0,1.09224339]
[1769357731953,0.214,87999.0,87975.0,1.09224339]
[1769357732171,0.46705436,88007.0,87979.0,1.09224339]
[1769357732414,0.14323757,88006.0,87982.0,0.45536671]
[1769357732622,0.020736,88004.0,87986.0,0.45536671]
[1769357732827,0.0118962,88008.0,87989.0,1.09224339]
[1769357732828,0.0005336,88008.0,87989.0,1.09224339]
[1769357733032,0.00014224,88004.0,87989.0,1.5476101]
[1769357733206,0.00999999,87989.0,87945.0,0.01137074]
[1769357733408,0.376268,87970.0,87942.0,0.08665467]
[1769357733606,0.48255405,87950.0,87919.0,0.39831443]
[1769357733807,0.00755901,87949.0,87919.0,0.39831443]
[1769357734013,0.22028,87948.0,87919.0,1.54255606]
[1769357734219,0.48255405,87950.0,87920.0,1.14424163]
[1769357734453,0.75590158,87968.0,87931.0,1.14424163]
[1769357734615,0.08874502,87978.0,87936.0,0.48925443]
[1769357734616,0.04552,87974.0,87936.0,0.48925443]
[1769357734811,0.04552,87977.0,87949.0,0.48925443]
[1769357735008,0.04552,87977.0,87951.0,1.14424163]
[1769357735492,0.48255405,87982.0,87951.0,1.14424163]
[1769357735701,0.04552,87983.0,87952.0,0.60085721]
[1769357735848,0.01136518,87988.0,87945.0,0.001]
[1769357735849,0.01136518,87988.0,87955.0,1.14424163]
[1769357736050,0.00014221,87988.0,87959.0,1.14424163]
[1769357736218,0.00014221,87988.0,87962.0,0.48925443]
[1769357736414,0.00014221,87988.0,87964.0,0.48925443]
[1769357736615,0.01136609,87981.0,87952.0,1.14424163]
[1769357736841,0.01136557,87985.0,87952.0,1.25584441]
[1769357737040,0.01136557,87985.0,87931.0,0.81599625]
[1769357737041,0.00999999,87952.0,87922.0,1.14424163]
[1769357737245,0.00999999,87952.0,87923.0,0.48925443]
[1769357737799,0.00999999,87952.0,87924.0,0.00024743]
[1769357738004,0.00999999,87952.0,87926.0,0.48925443]
[1769357738137,0.00999999,87952.0,87930.0,0.48925443]
[1769357738357,0.00999999,87952.0,87930.0,1.63349606]
[1769357738805,0.00999999,87952.0,87931.0,0.11160278]
[1769357738955,0.00999999,87952.0,87931.0,1.25584441]
[1769357739297,0.00999999,87952.0,87932.0,1.14424163]
[1769357739513,0.01136738,87971.0,87935.0,0.48925443]
[1769357739708,0.01136738,87971.0,87930.0,0.38197135]
[1769357739709,0.01136777,87968.0,87938.0,1.14424163]
[1769357739850,0.11135766,87967.0,87938.0,1.14424163]
[1769357740083,0.01136841,87963.0,87926.0,0.00047382]
[1769357740285,3.58,87959.0,87926.0,0.0001]
[1769357740525,0.00047382,87926.0,87881.0,0.002]
[1769357740700,0.37059867,87920.0,87889.0,0.0074504]
[1769357740909,0.05689332,87925.0,87889.0,0.0074504]
[1769357740910,0.01137384,87921.0,87889.0,0.0074504]
[1769357741265,0.01137345,87924.0,87889.0,0.0074504]
[1769357741470,0.04552,87925.0,87889.0,0.0074504]
[1769357742239,0.01137332,87925.0,87892.0,1.14424163]
[1769357742444,0.04552,87924.0,87892.0,1.14424163]
[1769357743244,0.04552,87926.0,87892.0,1.14424163]
[1769357743449,0.04552,87926.0,87897.0,0.11160278]
[1769357743784,0.01137307,87927.0,87897.0,0.11160278]
[1769357743987,0.001,87924.0,87897.0,0.11207652]
[1769357744149,0.01579223,87929.0,87897.0,0.00047374]
[1769357744348,0.01137449,87916.0,87897.0,0.00047374]
[1769357744669,0.01137501,87912.0,87897.0,0.00047374]
[1769357744871,0.06825087,87911.0,87897.0,0.0001]
[1769357745092,0.06825087,87911.0,87881.0,0.002]
[1769357745093,0.00910008,87910.0,87881.0,0.002]
[1769357745295,0.01137539,87909.0,87881.0,0.00341445]
[1769357745433,0.00047374,87910.0,87881.0,0.002]
[1769357745636,0.01137565,87907.0,87881.0,0.002]
[1769357745872,0.01137578,87906.0,87881.0,0.002]
[1769357746067,0.01137591,87905.0,87889.0,0.00999199]
[1769357746296,0.01137578,87906.0,87880.0,0.000171]
[1769357746297,0.01137772,87891.0,87880.0,0.000171]
[1769357746452,0.00047374,87910.0,87864.0,0.0005336]
[1769357746453,0.01137811,87888.0,87864.0,0.0005336]
[1769357746646,0.01137811,87888.0,87860.0,0.48925443]
[1769357746647,0.48255405,87895.0,87888.0,0.01]
[1769357746853,0.48255405,87895.0,87863.0,0.0005736]
[1769357747259,0.1748,87901.0,87863.0,0.0005736]
[1769357747260,0.01137591,87905.0,87864.0,0.01138122]
[1769357747455,0.001,87906.0,87875.0,0.60729138]
[1769357747736,0.48255405,87908.0,87875.0,0.60729138]
[1769357747921,0.48255405,87908.0,87877.0,1.14424163]
[1769357748122,0.49392957,87908.0,87877.0,1.14424163]
[1769357748434,0.37125281,87890.0,87865.0,0.000114]
[1769357748624,0.01137734,87894.0,87865.0,0.000114]
[1769357748770,0.01137772,87891.0,87865.0,0.000114]
[1769357748974,0.49393164,87892.0,87865.0,0.000114]
[1769357749174,0.01847452,87891.0,87865.0,0.000114]
[1769357749393,0.01137785,87890.0,87865.0,0.000114]
[1769357749967,0.0113763,87902.0,87868.0,0.48925443]
[1769357750169,0.01137656,87900.0,87868.0,0.48925443]
[1769357750316,0.48255405,87897.0,87865.0,0.000114]
[1769357750520,0.5010278,87897.0,87865.0,0.000114]
[1769357750878,0.5010278,87897.0,87865.0,1.14435563]
[1769357751048,0.01137734,87894.0,87865.0,0.000114]
[1769357751273,0.48255405,87896.0,87866.0,1.14424163]
[1769357751471,0.00047374,87910.0,87896.0,0.00726777]
[1769357751674,0.00047374,87910.0,87896.0,0.00236933]
[1769357751675,0.00027237,87909.0,87896.0,0.00236933]
[1769357752259,0.00047374,87910.0,87896.0,0.00236933]
[1769357752798,0.00027237,87909.0,87896.0,0.00236933]
[1769357752943,0.00027237,87909.0,87891.0,0.48925443]
[1769357753849,0.01137578,87906.0,87868.0,0.48925443]
[1769357754033,0.01137578,87906.0,87873.0,0.04552]
[1769357754034,0.0113763,87902.0,87873.0,0.04552]
[1769357754246,0.05715466,87901.0,87873.0,0.04552]
[1769357754457,0.01137695,87897.0,87873.0,0.04552]
[1769357754751,0.00705386,87895.0,87873.0,0.04552]
[1769357754948,0.00983412,87894.0,87873.0,0.04552]
[1769357755392,0.00027237,87893.0,87873.0,0.04552]
[1769357755600,2.05,87899.0,87873.0,0.04552]
[1769357755809,0.00027237,87898.0,87873.0,0.04552]
[1769357755956,0.020736,87903.0,87876.0,1.14424163]
[1769357755957,0.00027237,87902.0,87876.0,1.14424163]
[1769357756143,0.00027237,87902.0,87877.0,0.11160278]
[1769357756361,0.00027237,87902.0,87876.0,1.14424163]
[1769357756562,0.00027237,87903.0,87876.0,1.14424163]
[1769357756959,0.001,87899.0,87879.0,0.48925443]
[1769357757167,0.001,87899.0,87880.0,1.63349606]
[1769357757372,0.00047374,87910.0,87881.0,0.11160278]
[1769357757570,0.00705386,87908.0,87873.0,0.04552]
[1769357757790,0.00027237,87907.0,87874.0,1.14424163]
[1769357757992,1.43777578,87906.0,87876.0,0.48925443]
[1769357758212,0.00027237,87905.0,87877.0,0.60085721]
[1769357758414,0.00027237,87905.0,87878.0,1.14424163]
[1769357758615,0.00027237,87907.0,87879.0,1.14424163]
[1769357758818,0.00027237,87907.0,87877.0,0.11160278]
[1769357758819,0.001,87903.0,87880.0,0.48925443]
[1769357759015,0.001,87903.0,87873.0,0.04552]
[1769357759016,0.00027237,87902.0,87873.0,0.04552]
[1769357759189,0.00027237,87902.0,87874.0,0.07209953]
[1769357759594,0.70538638,87928.0,87865.0,0.000114]
[1769357759595,0.01137772,87891.0,87865.0,0.000114]
[1769357759797,0.01165022,87890.0,87865.0,0.000114]
[1769357760158,0.00027237,87890.0,87865.0,0.000114]
[1769357760326,0.00027237,87891.0,87865.0,0.000114]
[1769357760540,0.00027237,87891.0,87874.0,0.001]
[1769357760541,0.01137798,87889.0,87874.0,0.001]
[1769357760696,0.01137824,87887.0,87874.0,0.001]
[1769357760898,0.01137824,87887.0,87863.0,0.0005736]
[1769357760899,0.001,87874.0,87863.0,0.0005736]
[1769357761111,0.001,87874.0,87829.0,0.50120899]
[1769357761112,0.00605707,87855.0,87829.0,0.50120899]
[1769357761313,0.0004,87874.0,87833.0,0.01138524]
[1769357761521,0.0004,87874.0,87845.0,1.63349606]
[1769357761729,1.0098,87873.0,87845.0,0.17488]
[1769357761923,0.0004,87874.0,87833.0,0.48925443]
[1769357761924,0.00716147,87869.0,87833.0,0.48925443]
[1769357762122,0.01138109,87865.0,87833.0,0.48925443]
[1769357762325,0.011382,87858.0,87834.0,0.04556]
[1769357762542,0.011382,87858.0,87821.0,1.14424163]
[1769357762543,0.00763491,87869.0,87815.0,0.15]
[1769357762544,0.00709182,87843.0,87815.0,0.15]
[1769357762760,0.00040001,87844.0,87795.0,0.0005688]
[1769357762761,3.0278,87823.0,87810.0,1e-08]
[1769357762960,0.00592812,87788.0,87777.0,0.1862725]
[1769357763164,0.04556,87818.0,87774.0,1.16531518]
[1769357763366,0.04556,87823.0,87787.0,1.16531518]
[1769357763571,0.79467572,87819.0,87772.0,0.01139315]
[1769357763776,0.79467572,87819.0,87760.0,0.00011]
[1769357763777,0.1,87840.0,87819.0,0.00959999]
[1769357763969,0.7100366,87854.0,87819.0,0.00959999]
[1769357764195,0.001,87865.0,87825.0,0.23682383]
[1769357764196,0.45387011,87864.0,87825.0,0.23682383]
[1769357764468,0.001,87865.0,87840.0,0.37125281]
[1769357764673,0.001,87865.0,87840.0,0.38493691]
[1769357764897,0.001,87865.0,87840.0,0.37125281]
[1769357765321,0.00027237,87873.0,87840.0,0.01138433]
[1769357765526,0.01137902,87881.0,87850.0,0.37125281]
[1769357765726,0.01137928,87879.0,87846.0,1.16531518]
[1769357765878,0.01137721,87895.0,87850.0,0.37125281]
[1769357766083,0.05689118,87888.0,87851.0,1.16531518]
[1769357766285,0.01138005,87873.0,87830.0,0.41681281]
[1769357766489,0.01238109,87865.0,87831.0,0.47718822]
[1769357766689,0.001,87865.0,87831.0,0.47766137]
[1769357766889,0.01138096,87866.0,87831.0,0.47766137]
[1769357767093,0.01138122,87864.0,87831.0,0.45992974]
[1769357767291,0.00027237,87867.0,87831.0,0.45992974]
[1769357767455,0.00027237,87882.0,87850.0,0.37125281]
[1769357767659,0.00027237,87889.0,87851.0,1.16531518]
[1769357767881,0.00027237,87889.0,87842.0,0.1183863]
[1769357767882,0.01137967,87876.0,87831.0,0.48904687]
[1769357768079,0.01138109,87865.0,87831.0,0.47766137]
[1769357768283,0.01138161,87861.0,87832.0,1.16531518]
[1769357768496,0.04764035,87864.0,87832.0,1.16531518]
[1769357768700,0.00027237,87864.0,87832.0,1.6425034]
[1769357769295,0.01138057,87869.0,87832.0,1.6425034]
[1769357769500,0.01165307,87868.0,87832.0,1.6425034]
[1769357769682,0.00027237,87868.0,87833.0,1.16531518]
[1769357769878,0.00027237,87871.0,87834.0,1.16531518]
[1769357770086,0.00713152,87871.0,87837.0,1.16531518]
[1769357770304,0.00713152,87871.0,87832.0,0.01138537]
[1769357770305,0.38263455,87860.0,87830.0,0.04556]
[1769357770505,0.791382,87858.0,87830.0,0.04556]
[1769357770757,0.6616,87864.0,87830.0,0.04556]
[1769357770962,0.01405318,87865.0,87830.0,0.04556]
[1769357770963,0.01138187,87859.0,87830.0,0.04556]
[1769357771161,0.01138355,87846.0,87817.0,0.47718822]
[1769357771335,1.9139,87846.0,87811.0,1.16531518]
[1769357771548,0.0113829,87851.0,87811.0,1.16531518]
[1769357771755,0.01138122,87864.0,87820.0,0.37125281]
[1769357771931,0.00027237,87858.0,87826.0,1.16531518]
[1769357772134,0.01138213,87857.0,87826.0,1.16531518]
[1769357772346,0.00027237,87856.0,87826.0,1.16531518]
[1769357772690,0.01138394,87843.0,87831.0,0.0001]
[1769357772989,0.0001,87831.0,87808.0,1.21087518]
[1769357773162,0.00057315,87831.0,87808.0,1.21087518]
[1769357777016,0.020736,87807.0,87764.0,0.01271498]
[1769357777223,0.00047286,87807.0,87771.0,0.01139328]
[1769357777430,0.00047286,87807.0,87781.0,1.09659864]
[1769357777627,0.00047286,87807.0,87782.0,0.22052]
[1769357777805,0.00047286,87807.0,87783.0,0.22052]
[1769357778191,0.37125281,87800.0,87764.0,0.49965197]
[1769357778391,0.509,87806.0,87765.0,0.22056]
[1769357778596,2.31484,87799.0,87766.0,1.31715864]
[1769357778840,0.23458874,87806.0,87766.0,1.31715864]
[1769357779043,2.31484,87799.0,87767.0,0.22056]
[1769357779255,2.31484,87799.0,87768.0,0.04556]
[1769357779457,0.00754853,87806.0,87768.0,0.04556]
[1769357779458,0.5221,87805.0,87768.0,0.04556]
[1769357779662,2.2076,87806.0,87769.0,1.10799218]
[1769357779871,1.8828,87806.0,87769.0,1.09659864]
[1769357780195,0.01138602,87827.0,87784.0,1.09659864]
[1769357780481,0.01138692,87820.0,87784.0,1.09659864]
[1769357780686,0.001,87805.0,87776.0,0.01139263]
[1769357780996,0.001,87805.0,87779.0,1.09659864]
[1769357781143,0.001,87805.0,87780.0,0.04556]
[1769357781739,0.01138965,87799.0,87760.0,0.00011]